[Event "1000GM Schev-C-B February 2024"]
[Site "Santa Clara"]
[Date "2024.02.25"]
[Round "4.2"]
[White "Dominguez Aguilar, Guillermo"]
[Black "Qi, Jenny"]
[Result "1-0"]
[ECO "B51"]
[WhiteElo "2319"]
[BlackElo "1605"]
[Annotator "TA"]
[PlyCount "87"]
[EventDate "2024.02.13"]
[EventType "schev"]
[EventCountry "USA"]
[SourceTitle "playchess.com"]
[Source "ChessBase"]
[SourceQuality "1"]
[TimeControl "5400+30"]

{[%evp 10,86,20,9,30,-13,11,14,43,-41,-32,-59,0,-9,38,-63,78,70,88,95,85,91,122,110,162,165,289,306,325,270,277,285,274,234,233,231,225,218,336,331,308,190,197,208,466,467,475,470,469,471,502,500,490,460,1459,1442,1440,1440,1440,1413,1690,1690,2728,2684,29983,29984,29988,29985,29990,29985,29994,29995,29995,29996,29996,29997,29998,29999,29999]} 1. e4 {[%emt 0:00:15]} c5 {[%emt 1:31:00]} 2. Nf3 d6 {[%emt 0:00:00]} 3. Bb5+ {[%emt 0:00:49]} Nd7 {[%emt 0:00:00]} 4. c3 {[%emt 1:31:26]} Ngf6 {[%emt 0:01:30]} 5. Qe2 {[%emt 0:00:00]} a6 {[%emt 0:00:00]} 6. Ba4 {[%emt 0:00:00]} g6 {[%emt 0:00:00]} 7. d4 {[%emt 0:00:00]} cxd4 {[%emt 0:00:00]} 8. cxd4 {[%emt 0:00:00]} Bg7 {[%emt 0:00:00] The position is equal.} 9. e5 {[%emt 0:00:00]} (9. Nc3 $14) 9... dxe5 $15 {[%emt 0:00:00]} 10. dxe5 {[%emt 0:00:00]} Nd5 {[%emt 0:00:00]} (10... Qa5+ $1 $15 11. Nc3 Nd5) 11. O-O $36 {[%emt 0:00:00][%mdl 2048] Threatens to win with e6. White is more active.} O-O {[%emt 0:00:00]} (11... b5 $11 12. Rd1 bxa4 13. Rxd5 O-O) 12. e6 {[%emt 0:00:00]} (12. Bb3 $1 $14 N7b6 13. Nc3) 12... N7b6 {[%emt 0:00:00]} (12... Nc5 $15 {keeps the upper hand.} 13. exf7+ Rxf7) 13. exf7+ $16 {[%emt 0:00:00] White leaves nothing to chance now.} Rxf7 {[%emt 0:00:00]} 14. Bb3 {[%emt 0:00:00]} Bg4 {[%emt 0:00:00]} 15. Nbd2 {[%emt 0:00:00]} e6 {[%emt 0:00:00] [#]} 16. h3 $1 {[%emt 0:00:00]} Nf4 {[%emt 0:00:00]} (16... Bxf3 $16 17. Nxf3 Qd6) 17. Qe4 $18 Bxf3 {[%emt 0:06:30]} (17... Bxh3 {might work better.} 18. gxh3 Nbd5) 18. Nxf3 {[%emt 0:07:00]} Nfd5 {[%emt 0:00:00]} 19. Qxe6 {[%emt 0:00:00]} Qd7 {[%emt 0:00:00]} 20. Re1 {[%emt 0:00:00]} Kh8 {[%emt 0:00:00]} 21. Rb1 {[%emt 0:00:00]} Re7 {[%emt 0:00:00]} 22. Qxd7 {[%emt 0:00:00]} Rxd7 {[%emt 0:00:00]} 23. Re6 {[%emt 0:00:00]} Rc8 {[%emt 0:00:00]} (23... Rf8 $142 24. Bg5 h6 25. Bxh6 Bxh6) 24. Bd2 {[%emt 0:00:00]} Rdc7 {[%emt 0:00:00]} 25. Ba5 {[%emt 0:00:00] This pair of bishops is nice.} Rc6 {[%emt 0:00:00]} 26. Rxc6 {[%emt 0:00:00]} Rxc6 {[%emt 0:00:00] [#]} (26... bxc6 27. Ng5 Bf6) 27. Rd1 {[%emt 0:00:00]} Bxb2 {[%emt 0:03:46]} 28. Bxd5 {[%emt 0:00:00]} Nxd5 {[%emt 0:00:06]} 29. Rxd5 {[%emt 0:00:00]} Rc1+ {[%emt 0:00:16]} 30. Kh2 {[%emt 0:00:00]} Ra1 {[%emt 0:00:17]} 31. Rd2 {[%emt 0:00:00]} Bc1 {[%emt 0:01:32]} (31... Bf6 $142 32. g4 Rb1) 32. Bc3+ {[%emt 0:00:00]} Kg8 {[%emt 0:00:09]} 33. Rd8+ {[%emt 0:00:00]} Kf7 {[%emt 0:00:05]} 34. Bxa1 {[%emt 0:00:00]} Ke7 {[%emt 0:00:04]} 35. Rh8 {[%emt 0:00:00]} Kd7 {[%emt 0:00:04]} 36. Rxh7+ {[%emt 0:00:00]} Kc8 {[%emt 0:00:05]} 37. Be5 {[%emt 0:00:00] White mates.} Kd8 {[%emt 0:00:05]} 38. Rxb7 {[%emt 0:00:00]} Ke8 {[%emt 0:00:04]} 39. Nd4 {[%emt 0:10:30]} Kf8 {[%emt 0:00:11]} 40. Ne6+ {[%emt 0:00:00]} Ke8 {[%emt 0:00:09]} 41. Bd6 {[%emt 0:00:00][%csl Gd6][%cal Rb7e7]} Bg5 {[%emt 0:00:09]} 42. Nxg5 {[%emt 0:00:00]} a5 {[%emt 0:00:02][%cal Ba6a5,Ba5a4][%mdl 32]} 43. Ne6 {[%emt 0:00:00][%csl Gd6][%cal Rb7e7]} a4 {[%emt 0:00:04]} 44. Re7# {[%emt 0:00:00] Weighted Error Value: White=0.22 (precise) /Black=0.67.  Mistake:       	White=2     	Black=8      Inaccurate:     	White=3     	Black=2      OK:         	White=5     	Black=7      Best:        	White=5     	Black=2      Strong:       	White=1     	---} 1-0

[Event "1000GM Schev-C-B February 2024"]
[Site "Santa Clara"]
[Date "2024.02.25"]
[Round "4.3"]
[White "Widjaja, Luke"]
[Black "Gongora Montes, Benjamin"]
[Result "1-0"]
[ECO "B28"]
[WhiteElo "2037"]
[BlackElo "2173"]
[Annotator "RC"]
[PlyCount "67"]
[EventDate "2024.02.13"]
[EventType "schev"]
[EventCountry "USA"]
[SourceTitle "playchess.com"]
[Source "ChessBase"]
[SourceQuality "1"]
[TimeControl "5400+30"]

1. e4 {[%emt 0:00:02]} e6 {[%emt 0:00:11]} 2. d4 {[%emt 0:00:04]} d5 {[%emt 0:00:02]} 3. e5 {[%emt 0:00:05]} c5 {[%emt 0:00:01]} 4. c3 {[%emt 0:00:05]} Bd7 {[%emt 0:00:55]} 5. Nf3 {[%emt 0:00:33]} a6 {[%emt 0:03:56]} 6. Be2 {[%emt 0:01:29]} cxd4 {[%emt 0:00:21]} 7. cxd4 {[%emt 0:00:07]} Bb5 {[%emt 0:00:04]} 8. O-O {[%emt 0:02:26]} Bxe2 {[%emt 0:02:06]} 9. Qxe2 {[%emt 0:00:05]} Nc6 {[%emt 1:27:24]} 10. h4 {[%emt 0:07:21]} h6 {[%emt 0:00:00]} 11. h5 {[%emt 0:01:15]} Nge7 {[%emt 0:00:00]} 12. Qd3 {[%emt 0:06:16]} g6 {[%emt 0:00:00]} 13. hxg6 {[%emt 0:04:13]} Nxg6 {[%emt 0:00:00]} 14. g3 {[%emt 0:03:11]} Rg8 {[%emt 0:00:00]} 15. Kg2 {[%emt 0:06:48]} h5 {[%emt 0:00:00]} 16. Nc3 {[%emt 0:08:41]} h4 {[%emt 0:00:00]} 17. Ne2 {[%emt 0:01:39]} hxg3 {[%emt 0:00:00]} 18. fxg3 {[%emt 0:00:30]} Be7 {[%emt 0:00:00]} 19. a3 {[%emt 0:06:15]} Qb6 {[%emt 0:00:00]} 20. Ng5 {[%emt 0:03:12]} Bxg5 {[%emt 0:00:00]} 21. Bxg5 {[%emt 0:00:04]} Ngxe5 {[%emt 0:00:00]} 22. Qe3 {[%emt 0:13:40]} Nc4 {[%emt 0:00:00]} 23. Qf4 {[%emt 0:00:26]} Rg7 {[%emt 0:00:00]} 24. Qf6 {[%emt 0:02:16]} Qxb2 {[%emt 0:00:00]} 25. Qxg7 {[%emt 0:03:21]} Qxe2+ {[%emt 0:00:11]} 26. Kg1 {[%emt 0:00:16]} Qh5 {[%emt 0:00:45]} 27. Qg8+ {[%emt 0:04:16]} Kd7 {[%emt 0:00:05]} 28. Rxf7+ {[%emt 0:03:54]} Kd6 {[%emt 0:00:07]} 29. Bf4+ {[%emt 0:00:18]} e5 {[%emt 0:01:15]} 30. Rf6+ {[%emt 0:00:44]} Kc7 {[%emt 0:00:41]} 31. Qg7+ {[%emt 0:03:39]} Kb8 {[%emt 0:00:17]} 32. Rxc6 {[%emt 0:02:31]} exf4 {[%emt 0:01:08]} 33. Qf8+ {[%emt 0:00:12]} Ka7 {[%emt 0:00:11]} 34. Qc5+ {[%emt 0:00:07]} 1-0

[Event "1000GM Schev-C-B February 2024"]
[Site "Santa Clara"]
[Date "2024.02.25"]
[Round "4.4"]
[White "Chinni, Rishabh"]
[Black "Vidarte Morales, Arturo"]
[Result "1/2-1/2"]
[ECO "B42"]
[WhiteElo "1939"]
[BlackElo "2261"]
[Annotator "TA"]
[PlyCount "69"]
[EventDate "2024.02.13"]
[EventType "schev"]
[EventCountry "USA"]
[SourceTitle "playchess.com"]
[Source "ChessBase"]
[SourceQuality "1"]
[TimeControl "5400+30"]

{[%evp 12,69,58,44,51,49,54,41,61,49,51,32,58,54,75,76,106,102,102,100,100,62,59,31,41,21,9,24,50,43,57,0,0,0,0,0,0,0,0,0,0,0,0,0,0,0,0,0,0,0,0,0,0,0,0,0,4,0,0,0]} 1. e4 {[%emt 0:00:01]} c5 {[%emt 0:02:08]} 2. Nf3 {[%emt 0:00:04]} e6 {[%emt 0:00:43]} 3. d4 {[%emt 0:00:04]} cxd4 {[%emt 0:00:04]} 4. Nxd4 {[%emt 0:00:02]} a6 {[%emt 0:00:09]} 5. Bd3 {[%emt 0:00:08]} Bc5 {[%emt 0:00:03]} 6. Nb3 {[%emt 0:00:09]} Be7 {[%emt 0:00:02]} 7. Qg4 {[%emt 0:00:10]} Bf6 {[%emt 0:00:12]} 8. f4 {[%emt 0:01:40][%cal Bf2f4,Bf4f5][%mdl 32]} d6 {[%emt 0:00:03]} 9. Qf3 {[%emt 0:01:25]} Qc7 {[%emt 0:00:19] White is slightly better.} 10. O-O {[%emt 0:00:22]} Nd7 {[%emt 0:00:17]} 11. c3 {[%emt 0:00:46][%cal Bc2c3,Bc3c4][%mdl 32]} Ne7 {[%emt 0:00:30]} 12. Be3 {[%emt 0:00:25]} e5 {[%emt 0:03:23]} 13. f5 {[%emt 0:01:13]} h6 {[%emt 0:00:47]} 14. c4 {[%emt 0:01:13] White is more active.} b6 {[%emt 0:00:15]} 15. Nc3 {[%emt 0:00:13]} Bb7 {[%emt 0:00:04]} 16. g4 {[%emt 0:04:56]} Bg5 {[%emt 0:03:42]} 17. Qf2 {[%emt 0:06:45]} Ng8 {[%emt 0:07:16]} 18. h4 {[%emt 0:04:24]} Bxe3 {[%emt 0:02:37]} 19. Qxe3 {[%emt 0:00:01]} Ngf6 {[%emt 0:01:13]} (19... Nc5 {keeps more tension.} 20. Nxc5 Qxc5 21. Kf2 Nf6) 20. Be2 {[%emt 0:13:17]} Nc5 {[%emt 0:00:23]} 21. Nxc5 {[%emt 0:00:22]} (21. Nd2 $14) 21... Qxc5 $11 {[%emt 0:00:39] The position is equal.} 22. Qxc5 {[%emt 0:00:10]} bxc5 {[%emt 0:00:15]} 23. Bf3 {[%emt 0:00:05]} Ke7 {[%emt 0:00:44]} 24. Kf2 {[%emt 0:00:49]} g5 {[%emt 0:00:03]} 25. h5 {[%emt 0:04:01]} Rhb8 {[%emt 0:02:25]} 26. Ke3 {[%emt 0:04:16]} Bc6 {[%emt 0:00:30]} 27. b3 {[%emt 0:01:52]} a5 {[%emt 0:01:52]} 28. Rfb1 {[%emt 0:05:22]} a4 {[%emt 0:08:52]} 29. bxa4 {[%emt 0:02:00]} Rxb1 {[%emt 0:05:56]} 30. Rxb1 {[%emt 0:00:21]} Bxa4 {[%emt 0:00:05]} 31. Rb7+ {[%emt 0:00:31]} Kf8 {[%emt 0:00:44]} 32. Rb6 {[%emt 0:02:19]} Ke7 {[%emt 0:00:24]} 33. Rb7+ {[%emt 0:00:02]} Kf8 {[%emt 0:00:12]} 34. Rb6 {[%emt 0:23:02]} Ke7 {[%emt 0:00:58]} 35. Rb7+ {[%emt 0:03:17] Weighted Error Value: White=0.08 (flawless) /Black=0.05 (flawless) .  Mistake:       	White=1     	---        Inaccurate:     	White=2     	Black=3      OK:         	White=9     	Black=14     Best:        	---       	Black=1} 1/2-1/2

[Event "1000GM Schev-C-B February 2024"]
[Site "Santa Clara"]
[Date "2024.02.25"]
[Round "4.5"]
[White "Gracia Alvarez, Gerardo Antonio"]
[Black "Jin, Austin"]
[Result "1-0"]
[ECO "D35"]
[WhiteElo "2224"]
[BlackElo "1836"]
[Annotator "RC"]
[PlyCount "94"]
[EventDate "2024.02.13"]
[EventType "schev"]
[EventCountry "USA"]
[SourceTitle "playchess.com"]
[Source "ChessBase"]
[SourceQuality "1"]
[TimeControl "5400+30"]

1. d4 {[%emt 0:00:02]} d5 {[%emt 0:00:07]} 2. c4 {[%emt 0:00:03]} e6 {[%emt 0:00:07]} 3. Nc3 {[%emt 0:00:03]} Be7 {[%emt 0:00:07]} 4. Nf3 {[%emt 0:00:04]} Nf6 {[%emt 0:00:09]} 5. cxd5 {[%emt 0:00:04]} exd5 {[%emt 0:00:12]} 6. Bf4 {[%emt 0:00:02]} c6 {[%emt 0:00:10]} 7. h3 {[%emt 0:00:08]} Bf5 {[%emt 0:01:31]} 8. e3 {[%emt 0:00:04]} O-O {[%emt 0:00:29]} 9. g4 {[%emt 0:00:11]} Bg6 {[%emt 0:04:17]} 10. Ne5 {[%emt 0:00:05]} Ne4 {[%emt 0:06:58]} 11. Nxg6 {[%emt 0:01:44]} hxg6 {[%emt 0:00:31]} 12. Qc2 {[%emt 0:04:20]} Bb4 {[%emt 0:04:54]} 13. Bd3 {[%emt 0:02:24]} Nxc3 {[%emt 0:03:25]} 14. bxc3 {[%emt 0:00:16]} Bd6 {[%emt 0:00:39]} 15. Bxd6 {[%emt 0:00:20]} Qxd6 {[%emt 0:00:02]} 16. h4 {[%emt 0:00:52]} Nd7 {[%emt 0:05:01]} 17. g5 {[%emt 0:03:51]} Rfe8 {[%emt 0:01:40]} 18. Rh3 {[%emt 0:17:47]} c5 {[%emt 0:04:22]} 19. Kf1 {[%emt 0:05:35]} Qe6 {[%emt 0:08:28]} 20. Kg2 {[%emt 0:02:20]} Rac8 {[%emt 0:01:10]} 21. Qe2 {[%emt 0:00:59]} Kf8 {[%emt 0:08:26]} 22. Re1 {[%emt 0:02:43]} Qd6 {[%emt 0:12:50]} 23. h5 {[%emt 0:05:58]} gxh5 {[%emt 0:02:07]} 24. Qxh5 {[%emt 0:00:15]} g6 {[%emt 0:08:31]} 25. Qf3 {[%emt 0:02:58]} Qe6 {[%emt 0:14:15]} 26. e4 {[%emt 0:04:25]} Kg7 {[%emt 0:02:49]} 27. Reh1 {[%emt 0:02:47]} Rh8 {[%emt 0:01:46]} 28. Rxh8 {[%emt 0:02:07]} Rxh8 {[%emt 0:00:01]} 29. Rxh8 {[%emt 0:00:12]} Kxh8 {[%emt 0:00:01]} 30. exd5 {[%emt 0:00:08]} Qe7 {[%emt 0:00:12]} 31. Qf4 {[%emt 0:00:35]} cxd4 {[%emt 0:01:48]} 32. d6 {[%emt 0:06:45]} Qe5 {[%emt 0:00:29]} 33. Qxd4 {[%emt 0:05:28]} Kg8 {[%emt 0:00:58]} 34. Qxe5 {[%emt 0:00:05]} Nxe5 {[%emt 0:00:02]} 35. Be4 {[%emt 0:00:34]} Kf8 {[%emt 0:01:30]} 36. Bxb7 {[%emt 0:00:21]} Nc4 {[%emt 0:01:23]} 37. d7 {[%emt 0:00:58]} Ke7 {[%emt 0:00:02]} 38. Bc6 {[%emt 0:00:48]} a5 {[%emt 0:08:01]} 39. f4 {[%emt 0:02:52]} Kd8 {[%emt 0:00:00]} 40. Kf2 {[%emt 0:01:40]} Nd6 {[%emt 0:00:00]} 41. Ke3 {[%emt 0:02:47]} Nf5+ {[%emt 0:00:00]} 42. Ke4 {[%emt 0:01:16]} Ke7 {[%emt 0:00:12]} 43. c4 {[%emt 0:02:15]} Ng7 {[%emt 0:00:15]} 44. Bd5 {[%emt 0:01:36]} Nf5 {[%emt 0:00:27]} 45. c5 {[%emt 0:00:34]} Kxd7 {[%emt 0:00:29]} 46. Bxf7 {[%emt 0:00:11]} Ne7 {[%emt 0:00:04]} 47. Kd4 {[%emt 0:02:09]} Kc6 {[%emt 0:00:16]} 1-0

[Event "1000GM Schev-C-B February 2024"]
[Site "Santa Clara"]
[Date "2024.02.26"]
[Round "5.1"]
[White "Xia, Joshua"]
[Black "Dominguez Aguilar, Guillermo"]
[Result "0-1"]
[ECO "B39"]
[WhiteElo "1922"]
[BlackElo "2319"]
[Annotator "RC"]
[PlyCount "108"]
[EventDate "2024.02.13"]
[EventType "schev"]
[EventCountry "USA"]
[SourceTitle "playchess.com"]
[Source "ChessBase"]
[SourceQuality "1"]
[TimeControl "5400+30"]

1. e4 {[%emt 0:00:02]} c5 {[%emt 0:08:19]} 2. Nf3 {[%emt 0:00:06]} Nc6 {[%emt 0:00:32]} 3. d4 {[%emt 0:00:10]} cxd4 {[%emt 0:00:13]} 4. Nxd4 {[%emt 0:00:05]} g6 {[%emt 0:00:09]} 5. c4 {[%emt 0:00:13]} Bg7 {[%emt 0:00:09]} 6. Be3 {[%emt 0:00:10]} Nf6 {[%emt 0:00:11]} 7. Nc3 {[%emt 0:00:26]} Ng4 {[%emt 0:03:36]} 8. Qxg4 {[%emt 0:00:18]} Nxd4 {[%emt 0:00:12]} 9. Qd1 {[%emt 0:00:14]} Ne6 {[%emt 0:00:11]} 10. Be2 {[%emt 0:00:28]} b6 {[%emt 0:00:29]} 11. O-O {[%emt 0:01:24]} Bb7 {[%emt 0:00:08]} 12. Bf3 {[%emt 0:00:36]} Bxc3 {[%emt 0:00:54]} 13. bxc3 {[%emt 0:00:20]} Qc7 {[%emt 0:00:14]} 14. Qa4 {[%emt 0:04:05]} O-O {[%emt 0:01:22]} 15. Qb4 {[%emt 0:01:52]} d6 {[%emt 0:00:27]} 16. a4 {[%emt 0:02:18]} Rac8 {[%emt 0:02:33]} 17. a5 {[%emt 0:11:26]} Nc5 {[%emt 0:00:29]} 18. axb6 {[%emt 0:02:35]} axb6 {[%emt 0:00:16]} 19. Bxc5 {[%emt 1:13:12]} bxc5 {[%emt 0:00:41]} 20. Qb2 {[%emt 0:00:00]} Bc6 {[%emt 0:00:35]} 21. h4 {[%emt 0:00:00]} h5 {[%emt 0:00:23]} 22. Qe2 {[%emt 0:00:00]} Kg7 {[%emt 0:01:04]} 23. Qe3 {[%emt 0:00:00]} Rh8 {[%emt 0:04:23]} 24. Be2 {[%emt 0:00:00]} e5 {[%emt 0:00:31]} 25. Rad1 {[%emt 0:00:00]} Qe7 {[%emt 0:00:38]} 26. Rd3 {[%emt 0:00:00]} Rhd8 {[%emt 0:00:55]} 27. g3 {[%emt 0:00:00]} Rb8 {[%emt 0:00:46]} 28. Rfd1 {[%emt 0:00:00]} Rb6 {[%emt 0:00:13]} 29. f3 {[%emt 0:00:00]} Ba4 {[%emt 0:01:52]} 30. R1d2 {[%emt 0:00:00]} Qe6 {[%emt 0:01:36]} 31. Bf1 {[%emt 0:00:00]} Rb1 {[%emt 0:00:52]} 32. Rd5 {[%emt 0:00:00]} Bb3 {[%emt 0:03:37]} 33. Qd3 {[%emt 0:00:00]} Rc1 {[%emt 0:03:33]} 34. Kg2 {[%emt 0:00:00]} Rd7 {[%emt 0:06:51]} 35. Kh2 {[%emt 0:00:00]} Kf8 {[%emt 0:02:09]} 36. Qe2 {[%emt 0:00:00]} Ke7 {[%emt 0:01:05]} 37. Qd3 {[%emt 0:00:00]} Ba4 {[%emt 0:00:45]} 38. Bh3 {[%emt 0:00:00]} Rh1+ {[%emt 0:56:37]} 39. Kxh1 {[%emt 0:00:00]} Qxh3+ {[%emt 0:00:00]} 40. Rh2 {[%emt 0:00:00]} Qxg3 {[%emt 0:00:00]} 41. Qf1 {[%emt 0:00:00]} Rb7 {[%emt 0:00:00]} 42. Rd3 {[%emt 0:00:00]} Bd7 {[%emt 0:00:00]} 43. Rd1 {[%emt 0:00:00]} Be6 {[%emt 0:00:00]} 44. Qd3 {[%emt 0:00:00]} Rb6 {[%emt 0:00:00]} 45. Qe2 {[%emt 0:01:29]} Ra6 {[%emt 0:00:00]} 46. Rb1 {[%emt 0:01:10]} Ra4 {[%emt 0:00:00]} 47. Qd1 {[%emt 0:01:17]} Rxc4 {[%emt 0:00:00]} 48. Rb7+ {[%emt 0:00:39]} Kf6 {[%emt 0:00:00]} 49. Qxd6 {[%emt 0:07:01]} Qxf3+ {[%emt 0:00:00]} 50. Rg2 {[%emt 0:00:20]} Rxe4 {[%emt 0:00:00]} 51. Qe7+ {[%emt 0:01:51]} Kg7 {[%emt 0:00:00]} 52. Qxe6 {[%emt 0:02:07]} Qf1+ {[%emt 0:00:00]} 53. Kh2 {[%emt 0:01:06]} Rxh4+ {[%emt 0:07:30]} 54. Kg3 {[%emt 0:00:30]} Qf4# {[%emt 0:00:30]} 0-1

[Event "1000GM Schev-C-B February 2024"]
[Site "Santa Clara"]
[Date "2024.02.26"]
[Round "5.2"]
[White "Gongora Montes, Benjamin"]
[Black "Qi, Jenny"]
[Result "1-0"]
[ECO "A46"]
[WhiteElo "2173"]
[BlackElo "1605"]
[Annotator "RC"]
[PlyCount "95"]
[EventDate "2024.02.13"]
[EventType "schev"]
[EventCountry "USA"]
[SourceTitle "playchess.com"]
[Source "ChessBase"]
[SourceQuality "1"]
[TimeControl "5400+30"]

1. d4 {[%emt 0:00:27]} Nf6 {[%emt 0:00:15]} 2. Nf3 {[%emt 0:00:12]} e6 {[%emt 0:00:30]} 3. Bg5 {[%emt 0:00:06]} h6 {[%emt 0:00:57]} 4. Bxf6 {[%emt 0:00:06]} Qxf6 {[%emt 0:00:40]} 5. e4 {[%emt 0:00:06]} d6 {[%emt 0:00:34]} 6. e5 {[%emt 0:00:11]} dxe5 {[%emt 0:01:44]} 7. dxe5 {[%emt 0:00:14]} Qf4 {[%emt 0:01:01]} 8. Qd2 {[%emt 0:00:44]} Qxd2+ {[%emt 0:00:26]} 9. Nbxd2 {[%emt 0:00:07]} Nd7 {[%emt 0:01:17]} 10. O-O-O {[%emt 0:01:19]} g5 {[%emt 0:01:52]} 11. g4 {[%emt 0:01:04]} Bg7 {[%emt 0:01:48]} 12. Re1 {[%emt 0:00:12]} a6 {[%emt 0:23:16]} 13. h4 {[%emt 0:00:21]} b5 {[%emt 0:04:05]} 14. Bd3 {[%emt 0:00:38]} Bb7 {[%emt 0:13:32]} 15. Be4 {[%emt 0:00:35]} O-O-O {[%emt 0:02:42]} 16. Bxb7+ {[%emt 0:01:39]} Kxb7 {[%emt 0:00:12]} 17. Ne4 {[%emt 0:00:38]} Kb6 {[%emt 0:44:09]} 18. Ng3 {[%emt 1:30:51]} Rhg8 {[%emt 0:00:00]} 19. hxg5 {[%emt 0:00:00]} hxg5 {[%emt 0:00:00]} 20. Rh5 {[%emt 0:00:00]} c6 {[%emt 0:01:30]} 21. c3 {[%emt 0:01:30]} Rh8 {[%emt 0:00:00]} 22. Kc2 Rxh5 {[%emt 0:01:00]} 23. Nxh5 {[%emt 0:01:00]} Bh8 {[%emt 0:00:30]} 24. Rd1 {[%emt 0:00:30]} Kc7 {[%emt 0:00:00]} 25. Nxg5 {[%emt 0:00:00]} Bxe5 {[%emt 0:00:00]} 26. Nxf7 {[%emt 0:00:00]} Rf8 {[%emt 0:00:00]} 27. Rxd7+ {[%emt 0:00:00]} Kxd7 {[%emt 0:00:04]} 28. Nxe5+ {[%emt 0:00:00]} Kd6 {[%emt 0:02:26]} 29. f4 {[%emt 0:00:00]} Rxf4 {[%emt 0:00:00]} 30. Nxf4 {[%emt 0:00:00]} Kxe5 {[%emt 0:00:00]} 31. Nd3+ {[%emt 0:00:00]} Kf6 {[%emt 0:00:00]} 32. Nb4 {[%emt 0:00:00]} Kg5 33. Kd3 {[%emt 0:00:00]} Kxg4 {[%emt 0:00:00]} 34. Ke4 {[%emt 0:00:00]} Kg3 {[%emt 0:00:06]} 35. Nxa6 {[%emt 0:00:00]} Kf2 {[%emt 0:00:30]} 36. Nb4 {[%emt 0:00:00]} Ke2 {[%emt 0:00:30]} 37. Nxc6 {[%emt 0:00:00]} Kd2 {[%emt 0:00:30]} 38. Nd4 {[%emt 0:00:00]} Kc1 {[%emt 0:00:30]} 39. b4 {[%emt 0:00:00]} Kb2 {[%emt 0:00:30]} 40. Nxb5 {[%emt 0:00:00]} Kxa2 {[%emt 0:00:30]} 41. Nd4 {[%emt 0:00:00]} Kb2 {[%emt 0:00:30]} 42. Ne2 {[%emt 0:00:00]} Kb3 {[%emt 0:00:30]} 43. b5 {[%emt 0:00:00]} Kc4 {[%emt 0:00:30]} 44. b6 {[%emt 0:00:00]} Kc5 {[%emt 0:00:30]} 45. b7 {[%emt 0:00:00]} Kc6 {[%emt 0:00:30]} 46. b8=Q {[%emt 0:00:00]} Kc5 {[%emt 0:00:30]} 47. Nd4 {[%emt 0:00:00]} Kc4 {[%emt 0:00:30]} 48. Qc8# {[%emt 0:00:00]} 1-0

[Event "1000GM Schev-C-B February 2024"]
[Site "Santa Clara"]
[Date "2024.02.26"]
[Round "5.3"]
[White "Vidarte Morales, Arturo"]
[Black "Widjaja, Luke"]
[Result "1/2-1/2"]
[ECO "D36"]
[WhiteElo "2261"]
[BlackElo "2037"]
[Annotator "RC"]
[PlyCount "57"]
[EventDate "2024.02.13"]
[EventType "schev"]
[EventCountry "USA"]
[SourceTitle "playchess.com"]
[Source "ChessBase"]
[SourceQuality "1"]
[TimeControl "5400+30"]

1. d4 {[%emt 0:06:00]} d5 {[%emt 0:00:12]} 2. c4 {[%emt 0:05:45]} e6 {[%emt 0:00:04]} 3. Nc3 {[%emt 0:00:06]} Nf6 {[%emt 0:00:02]} 4. cxd5 {[%emt 0:00:26]} exd5 {[%emt 0:00:03]} 5. Bg5 {[%emt 0:00:07]} Be7 {[%emt 0:00:04]} 6. e3 {[%emt 0:00:11]} c6 {[%emt 0:00:06]} 7. Bd3 {[%emt 0:00:10]} Nbd7 {[%emt 0:00:23]} 8. Nf3 {[%emt 0:00:04]} O-O {[%emt 0:00:54]} 9. O-O {[%emt 0:00:17]} Re8 {[%emt 0:00:26]} 10. Qc2 {[%emt 0:00:11]} h6 {[%emt 0:01:46]} 11. Bf4 {[%emt 0:00:19]} Nf8 {[%emt 0:05:10]} 12. h3 {[%emt 0:01:44]} b5 {[%emt 0:06:13]} 13. Ne5 {[%emt 0:06:23]} Bb7 {[%emt 0:01:05]} 14. Rac1 {[%emt 0:01:14]} Ne6 {[%emt 0:02:00]} 15. Bh2 {[%emt 0:01:43]} a6 {[%emt 0:01:29]} 16. Bf5 {[%emt 0:01:24]} Bd6 {[%emt 0:06:37]} 17. Rfd1 {[%emt 0:05:02]} c5 {[%emt 0:04:57]} 18. dxc5 {[%emt 0:02:09]} Nxc5 {[%emt 0:00:34]} 19. Nf3 {[%emt 0:01:37]} Bxh2+ {[%emt 0:02:49]} 20. Kxh2 {[%emt 0:00:24]} Qb8+ {[%emt 0:07:04]} 21. Kg1 {[%emt 0:00:25]} Nce4 {[%emt 0:00:12]} 22. Nd4 {[%emt 0:03:23]} g6 {[%emt 0:03:19]} 23. Bxe4 {[%emt 0:00:02]} dxe4 {[%emt 0:01:38]} 24. Nde2 {[%emt 0:02:00]} Qe5 {[%emt 0:02:07]} 25. Qd2 {[%emt 0:00:38]} Qg5 {[%emt 0:13:21]} 26. Qd6 {[%emt 0:01:15]} Kg7 {[%emt 0:09:25]} 27. Qc7 {[%emt 0:03:28]} Bc8 {[%emt 0:04:02]} 28. Qg3 {[%emt 0:02:31]} Be6 {[%emt 0:02:00]} 29. Qxg5 {[%emt 0:00:32]} 1/2-1/2